Cogmind - Beta 10.2 @@@ ROGUE MODE // 2021.09.09 @ 16:35:23 Player: TheGreatBorealis Result: Self-destructed Performance ------------- Evolutions (2) 1000 Regions Visited (4) 800 Robots Destroyed (42) 210 Value Destroyed (1337) 1337 Prototype IDs (4) 80 Alien Tech Used (0) 0 Bonus (151) 151 TOTAL SCORE: 3578 Bonus ------- High Alert Combat Kills 33 Follower Combat Kills 118 Cogmind --------- Core Integrity 490/550 Matter 300/300 Energy 265/265 System Corruption 0% Temperature Cool (0) Movement Treading (180) Ox1 Location -8/Materials Parts ------- > --- POWER (1) -------- Improved Ion Engine > --- PROPULSION (4) --- Improved Treads Improved Treads Carbon-fiber Leg Carbon-fiber Leg > --- UTILITY (3) ------ Advanced Heat Sink Large Storage Unit Large Storage Unit > --- WEAPON (3) ------- Heavy Assault Rifle Improved Light Cannon Assault Cannon > --- INVENTORY (16) --- Light Nuclear Core Light Treads Light Treads Improved Aluminum Leg Improved Aluminum Leg Carbon-fiber Leg Carbon-fiber Leg Carbon-fiber Leg Large Battery (300) High-capacity Matter Pod (200) Improved Light Armor Plating Heavy Assault Rifle Improved Light Cannon Improved Light Cannon Rocket Launcher Rocket Launcher Peak State ------------ > --- POWER ------------ Improved Ion Engine > --- PROPULSION ------- Improved Treads Improved Treads Carbon-fiber Leg Carbon-fiber Leg > --- UTILITY ---------- Advanced Heat Sink Large Storage Unit Large Storage Unit > --- WEAPON ----------- Heavy Assault Rifle Improved Light Cannon Assault Cannon > --- INVENTORY -------- Light Nuclear Core Light Treads Light Treads Improved Aluminum Leg Improved Aluminum Leg Carbon-fiber Leg Carbon-fiber Leg Carbon-fiber Leg Large Battery High-capacity Matter Pod Improved Light Armor Plating Heavy Assault Rifle Improved Light Cannon Improved Light Cannon Rocket Launcher Rocket Launcher [Rating: 29] Favorites ----------- Power Improved Ion Engine Engine Improved Ion Engine Propulsion Light Treads Treads Light Treads Leg Carbon-fiber Leg Utility Large Storage Unit Device Advanced Heat Sink Storage Large Storage Unit Protection Light Armor Plating Weapon Improved Light Cannon Energy Gun Beam Rifle Ballistic Gun Heavy Assault Rifle Ballistic Cannon Improved Light Cannon Launcher Rocket Launcher Build | -11 -10 -9 -9 -8 ------- Run | Scr Mat Mat Sto Mat Slots Evolved 4 | . . 2 . 2 Power . | . . . . . Propulsion 2 | . . 2 . . Utility 1 | . . . . 1 Weapon 1 | . . . . 1 Parts Attached 42 | . 10 17 7 8 Power 2 | . 1 1 . . Engine 2 | . 1 1 . . Core . | . . . . . Reactor . | . . . . . Propulsion 19 | . 4 9 4 2 Treads 11 | . 3 4 4 . Leg 8 | . 1 5 . 2 Wheel . | . . . . . Hover . | . . . . . Flight . | . . . . . Utility 4 | . 2 . . 2 Device 1 | . . . . 1 Storage 2 | . 2 . . . Processor . | . . . . . Hackware . | . . . . . Protection 1 | . . . . 1 Artifact . | . . . . . Weapon 17 | . 3 7 3 4 Energy Gun 1 | . . 1 . . Energy Cannon . | . . . . . Ballistic Gun 4 | . 2 1 1 . Ballistic Cannon 7 | . . 3 1 3 Launcher 5 | . 1 2 1 1 Special Weapon . | . . . . . Impact Weapon . | . . . . . Slashing Weapon . | . . . . . Piercing Weapon . | . . . . . Special Melee Weapon . | . . . . . Unidentified Prototypes . | . . . . . Parts Lost 2 | . 1 1 . . Power 1 | . 1 . . . Propulsion . | . . . . . Utility . | . . . . . Weapon 1 | . . 1 . . Highest Loss Streak 1 | . 1 1 . . Average Slot Usage (%) 98 | . 98 99 100 94 Engine 11 | . 13 11 11 9 Treads 22 | . 26 22 22 18 Leg 17 | . 2 22 22 18 Storage 22 | . 27 22 22 18 Ballistic Gun 14 | . 27 11 11 9 Ballistic Cannon 8 | . . 7 10 15 Naked Turns . | . . . . . Heaviest Build 53 | 10 37 46 46 53 Greatest Support 46 | 20 40 30 30 46 Greatest Overweight (x) 2 | . 1 2 1 1 Average Overweight (x) . | . . 1 1 1 Largest Inventory Capacity 16 | 6 16 16 16 16 Average Capacity 15 | 6 15 16 16 16 Most Carried 16 | 6 10 16 16 16 Average Carried 13 | 6 8 14 16 15 Final Capacity 16 | 6 16 16 16 16 Final Carried 16 | 6 10 16 16 16 Class Distribution -------------------- 54% | Mutant 32% | Scavenger-Mutant 5% | Commander-Mutant 4% | Gunner Dominant Class ---------------- Mutant | -10/Materials Mutant | -9/Materials Scavenger-Mutant | -9/Storage Scavenger-Mutant | -8/Materials Resources | -11 -10 -9 -9 -8 ----------- Run | Scr Mat Mat Sto Mat Matter Collected 1382 | 200 137 467 267 311 Remotely . | . . . . . Salvage Created 1225 | . 188 464 269 304 Parts 84 | . 14 36 18 16 Haulers Intercepted . | . . . . . Recyclers Shooed . | . . . . . Parts Field Recycled . | . . . . . Retrieved Matter . | . . . . . Parts Self-Destructed . | . . . . . Prevented . | . . . . . Kills | -11 -10 -9 -9 -8 ------- Run | Scr Mat Mat Sto Mat Combat Hostiles Destroyed 38 | . 7 13 8 10 Guns 15 | . 4 5 4 2 Cannons 10 | . . 1 4 5 AOE 13 | . 3 7 . 3 Classes Destroyed 9 | . 2 4 2 1 Worker 2 | . . 2 . . Operator 1 | . . 1 . . Watcher 1 | . . . 1 . Swarmer 10 | . 3 4 . 3 Grunt 15 | . 4 4 4 3 Brawler 1 | . . . 1 . Duelist 1 | . . 1 . . Sentry 10 | . . 4 3 3 Hunter 1 | . . . . 1 Best Kill Streak 5 | . 3 5 2 4 Combat Bots Only 5 | . 3 5 2 4 Max Kills in Single Turn 5 | . 3 5 1 2 Gunslinging . | . . . . . Exploded 4 | . 3 4 . 2 Melee . | . . . . . Uniques/NPCs Destroyed . | . . . . . Combat | -11 -10 -9 -9 -8 -------- Run | Scr Mat Mat Sto Mat Damage Taken 1436 | . 345 260 437 394 Core 231 | . 81 66 24 60 Absorbed by Shields . | . . . . . Core Remaining (%) 81 | 100 67 . 77 . Volleys Fired 96 | . 28 18 32 18 Largest 3 | . 2 2 2 3 Hottest 101 | . 50 76 62 101 Shots Fired 201 | . 56 33 64 48 Gun 131 | . 55 26 32 18 Cannon 63 | . . 5 30 28 Launcher 7 | . 1 2 2 2 Special . | . . . . . Kinetic 193 | . 55 30 62 46 Thermal 1 | . . 1 . . Explosive 7 | . 1 2 2 2 Electromagnetic . | . . . . . Robot Hit Streak 15 | . 15 12 12 13 Robot Miss Streak 3 | . 2 1 3 2 Penetration Max . | . . . . . Secondary Targets . | . . . . . Shots Hit Robots 152 | . 46 27 47 32 Core Hits 73 | . 15 26 13 19 Critical Hits 1 | . . 1 . . Critical Kills . | . . . . . Critical Parts Destroyed 1 | . . 1 . . Melee Attacks . | . . . . . Impact . | . . . . . Slashing . | . . . . . Piercing . | . . . . . Sneak Attacks . | . . . . . Combat Hostiles . | . . . . . Follow-up Attacks . | . . . . . Damage Inflicted 2887 | . 438 806 853 790 Guns 1201 | . 350 264 411 176 Cannons 909 | . . 61 442 406 Explosions 777 | . 88 481 . 208 Melee . | . . . . . Ramming . | . . . . . Kinetic 2095 | . 350 310 853 582 Thermal 107 | . . 107 . . Explosive 685 | . 88 389 . 208 Electromagnetic . | . . . . . Impact . | . . . . . Slashing . | . . . . . Piercing . | . . . . . Highest Corruption . | . . . . . Average Corruption . | . . . . . Corruption Purged . | . . . . . Overload Shots . | . . . . . Overflow Damage 47 | . . . 17 30 Projectiles 26 | . . . 17 9 Explosions 21 | . . . . 21 Melee . | . . . . . Knockbacks 4 | . . . 3 1 Impact . | . . . . . Kinetic 4 | . . . 3 1 Secondary . | . . . . . Self-Inflicted Damage 65 | . 22 43 . . Shots 3 | . 1 2 . . Rammed . | . . . . . Targets Rammed . | . . . . . Kicked . | . . . . . Crushed . | . . . . . Highest Temperature 251 | . 19 30 14 251 Average Temperature 43 | . 8 7 6 94 Received Heat Transfer 612 | . 171 72 162 207 Effects 1 | . . . . 1 Interference 1 | . . . . 1 Siege Activations . | . . . . . Robots Corrupted . | . . . . . Combat Hostiles . | . . . . . Parts Fried . | . . . . . Impact Corruptions . | . . . . . Robots Melted . | . . . . . Combat Hostiles . | . . . . . Parts Melted . | . . . . . Heat Transferred 87 | . . 87 . . Parts Sabotaged . | . . . . . Parts Stolen . | . . . . . Parts Stripped . | . . . . . Power Chain Reactions . | . . . . . Missiles Intercepted . | . . . . . Alert | -11 -10 -9 -9 -8 ------- Run | Scr Mat Mat Sto Mat Peak Influence 489 | . 225 393 402 489 Initial 165 | . . 94 165 156 Average 241 | . 96 234 272 362 Maximum Alert Level 2 | . 1 1 2 2 Low Security (%) 33 | 100 84 25 16 15 Level 1 53 | . 15 74 71 32 Level 2 13 | . . . 12 51 Level 3 . | . . . . . Level 4 . | . . . . . Level 5 . | . . . . . High Security . | . . . . . Max Security . | . . . . . Squads Dispatched 3 | . 1 1 1 . Investigation . | . . . . . Extermination . | . . . . . Reinforcement 2 | . 1 1 . . Assault . | . . . . . Garrison 1 | . . . 1 . Intercept . | . . . . . Construction Impeded . | . . . . . Haulers Reinforced . | . . . . . Stealth | -11 -10 -9 -9 -8 --------- Run | Scr Mat Mat Sto Mat Distress Signals 2 | . 1 . . 1 Communications Jammed . | . . . . . Distress Signals . | . . . . . Times Spotted 54 | . 12 21 9 12 Peak Tracking Total 5 | . 4 5 2 3 Tactical Retreats 4 | . 1 . . 3 Traps | -11 -10 -9 -9 -8 ------- Run | Scr Mat Mat Sto Mat Traps Triggered . | . . . . . Indirectly . | . . . . . Trap Hack Attempts . | . . . . . Triggered . | . . . . . Disarmed . | . . . . . Reprogrammed . | . . . . . Reused . | . . . . . Traps Extracted . | . . . . . Installed . | . . . . . Triggered . | . . . . . Machines | -11 -10 -9 -9 -8 ---------- Run | Scr Mat Mat Sto Mat Machines Disabled 5 | . . 3 1 1 Max in Single Turn 3 | . . 3 1 1 Machines Sabotaged . | . . . . . Garrisons Compromised . | . . . . . Overloaded Fab Kills . | . . . . . Fab Network Shutdowns . | . . . . . Hacking | -11 -10 -9 -9 -8 --------- Run | Scr Mat Mat Sto Mat Machines Accessed 8 | . 2 2 3 1 Terminals 8 | . 2 2 3 1 Fabricators . | . . . . . Repair Stations . | . . . . . Recycling Units . | . . . . . Scanalyzers . | . . . . . Garrison Access . | . . . . . Total Hacks 17 | . 4 5 6 2 Successful 8 | . 3 2 2 1 Failed 9 | . 1 3 4 1 Catastrophic 3 | . 1 1 1 . Database Lockouts . | . . . . . Manual 3 | . . 3 . . Terminals 17 | . 4 5 6 2 Fabricators . | . . . . . Repair Stations . | . . . . . Recycling Units . | . . . . . Scanalyzers . | . . . . . Garrison Access . | . . . . . Terminal Hacks 8 | . 3 2 2 1 Prototype ID Bank 2 | . 1 . . 1 Open Door 2 | . . . 2 . Alert Level 2 | . 1 1 . . Locate Traps 1 | . 1 . . . Zone Layout 1 | . . 1 . . Fabricator Hacks . | . . . . . Repair Station Hacks . | . . . . . Recycling Unit Hacks . | . . . . . Scanalyzer . | . . . . . Garrison Access Hacks . | . . . . . Unauthorized Hacks . | . . . . . Terminals . | . . . . . Fabricators . | . . . . . Repair Stations . | . . . . . Recycling Units . | . . . . . Scanalyzers . | . . . . . Garrison Access . | . . . . . Data Cores Recovered 1 | . . 1 . . Used . | . . . . . Hacking Detections 7 | . 2 2 2 1 Full Trace Events . | . . . . . Feedback Events . | . . . . . Feedback Blocked . | . . . . . Robot Schematics Acquired . | . . . . . Robots Built . | . . . . . Matter . | . . . . . Time . | . . . . . Total Robot Build Rating . | . . . . . Part Schematics Acquired . | . . . . . Parts Built . | . . . . . Matter . | . . . . . Time . | . . . . . Total Part Build Rating . | . . . . . Parts Repaired . | . . . . . Time . | . . . . . Parts Recycled . | . . . . . Recycled Matter . | . . . . . Retrieved Matter . | . . . . . Retrieved Components . | . . . . . Parts Scanalyzed . | . . . . . Part Schematics Acquired . | . . . . . Parts Damaged . | . . . . . Bothacking | -11 -10 -9 -9 -8 ------------ Run | Scr Mat Mat Sto Mat Used RIF Installer . | . . . . . Robots Hacked . | . . . . . Non-combat . | . . . . . Combat . | . . . . . Robot Hacks Applied . | . . . . . Relay Couplers Released . | . . . . . Robots Rewired . | . . . . . Allies Hacked . | . . . . . Hacks Repelled . | . . . . . Allies | -11 -10 -9 -9 -8 -------- Run | Scr Mat Mat Sto Mat Total Allies 10 | . . . 10 . Largest Group 10 | . . . 10 1 Highest-Rated Group 88 | . . . 88 8 Highest-Rated Ally 16 | . . . 16 8 Total Orders . | . . . . . Ally Attacks 49 | . . . 48 1 Total Damage 493 | . . . 481 12 Kills 7 | . . . 7 . Allies Corrupted . | . . . . . Allies Melted . | . . . . . Intel | -11 -10 -9 -9 -8 ------- Run | Scr Mat Mat Sto Mat Robot Analysis Total . | . . . . . Derelict Logs Recovered . | . . . . . Drone Launches . | . . . . . Drone Recoveries . | . . . . . Exploration | -11 -10 -9 -9 -8 ------------- Run | Scr Mat Mat Sto Mat Turns Passed 1767 | 5 347 598 488 329 Spaces Moved 813 | 5 144 295 229 140 Core . | . . . . . Treads 151 | . 133 . . 18 Legs 662 | 5 11 295 229 122 Wheels . | . . . . . Hover . | . . . . . Flight . | . . . . . Fastest Speed 120 | 120 120 150 150 150 Average Speed 153 | 120 157 155 150 153 Slowest Speed 180 | 120 160 180 150 180 Overloaded Moves . | . . . . . Propulsion Burnouts . | . . . . . Robots Hopped . | . . . . . Cave-ins Triggered . | . . . . . Exploration Rate (%) 23 | 2 31 34 38 12 Regions Visited 4 Branch Regions 1 Pre-discovered Areas . | . . . . . Known Exits Taken . | . . . . . Unknown Exits Taken 4 | 1 1 1 1 . Scrap Searched . | . . . . . Spaces Dug 4 | . 4 . . . Terrain Destroyed 79 | . 4 52 9 14 Melee . | . . . . . Projectile 2 | . . . 1 1 AOE 77 | . 4 52 8 13 Terrain Rammed . | . . . . . Walls Destroyed . | . . . . . Machines Disabled . | . . . . . Actions | -11 -10 -9 -9 -8 --------- Run | Scr Mat Mat Sto Mat Total 1165 | 4 217 410 319 215 Wait 168 | . 28 57 41 42 Move 809 | 4 143 294 228 140 Hop . | . . . . . Pick Up 22 | . 6 11 3 2 Fast Attach 5 | . 1 2 . 2 Attach 5 | . 2 2 . 1 Detach 1 | . 1 . . . Swap 32 | . 7 13 7 5 Drop 27 | . 1 13 8 5 Fire 96 | . 28 18 32 18 Melee . | . . . . . Ram . | . . . . . Kick . | . . . . . Crush . | . . . . . Escape Stasis . | . . . . . Rewire . | . . . . . Trap . | . . . . . Miscellaneous . | . . . . . Route ------- -11/Scrapyard -10/Materials -9/Materials (discovered 3 exits: [Min] / *Sto x2) -9/Storage -8/Materials History --------- Turn | Location | Event 1 | -11/Scrapyard | Discovered new exit (range 3) 6 | -11/Scrapyard | Entered Materials 320 | -10/Materials | Discovered new exit (range 8) 325 | -10/Materials | Build established: Mutant 353 | -10/Materials | Entered another Materials area 353 | -9/Materials | Evolved 2 slots: Propulsion x2 445 | -9/Materials | Discovered new exit (range 15) 841 | -9/Materials | Discovered new exit (range 22) 841 | -9/Materials | Discovered new exit (range 15) 951 | -9/Materials | Entered Storage 1217 | -9/Storage | Build established: Scavenger-Mutant 1331 | -9/Storage | Assisted by bots powering up and referring to "LRC-V3" 1394 | -9/Storage | Garrison activated, responded to threat 1417 | -9/Storage | Discovered new exit (range 15) 1439 | -9/Storage | Entered Materials 1439 | -8/Materials | Accompanied by 1 ally 1439 | -8/Materials | Evolved 2 slots: Utility x1, Weapon x1 1768 | -8/Materials | Self-destructed Last Messages --------------- 01658_ Acquired 2 matter. 01660_ K-01 Serf collects debris. 01662_ Acquired 18 matter. 01663_ U-05 Engineer builds a Wall. 01663_ R-06 Scavenger collects Lgt. Ion Engine. 01666_ U-05 Engineer builds a Wall. 01670_ R-06 Scavenger collects Assault Rifle. 01674_ R-06 Scavenger collects Lgt. Armor Plating. 01674_ U-05 Engineer builds a Wall. 01681_ U-05 Engineer lays Concrete. 01682_ U-05 Engineer builds a Wall. 01682_ K-01 Serf collects debris. 01686_ U-05 Engineer builds a Wall. 01687_ Y-45 Defender destroyed. 01688_ K-01 Serf collects debris. 01690_ Acquired 8 matter. 01691_ K-01 Serf collects debris. 01732_ G-47 Trooper knocked back. 01738_ K-01 Serf cleans the Nuclear Reactor. 01741_ Acquired 8 matter. Map ----- +----------------------------------------------------+ | ?????????????????????????????????????????????????? | | ?????????????????????????????????????????????????? | | ?????????????????????????????????????????????????? | | ?????????????????????????????????????????????????? | | ?????????????????????????????????????????????????? | | ?????????????????????????????????????????????????? | | ?????????????????????????????????????????????????? | | ?????????????????????????????????????????????????? | | ?????????????????????????????????????????????????? | | ?????????????????????????????????????????????????? | | ?????????????????????????????????????????????????? | | ?????????????????????????????????????????????????? | | ?????????????????????????????????????????????????? | | ???????????????????????###???????????????????????? | | ???????????????????????# #########???????????????? | | ???????????????????????# #???????????????? | | ???????????? ????????#=== #???????????????? | | ???????????? #??????#== #???????????????? | | ???????????? #??????#== #???????????????? | | ???????????# #??????# ""#???????????????? | | ???????#???# #??????# ! T"#???????????????? | | ?????#? ???# #??????# ""#???????????????? | | ?????# ##?# #??????# #???????????????? | | ?????# ## #??????#+###+#####+#####?????????? | | ###### ## ########%! g #?????????? | | ### ### ! a*@ + ????????? | | ! ##+######+## #?????????? | | %""" ## ????????????????? | | """ %## ????????????????? | | ###+### """ ] ## ???????????????? | | # ### # ## #?????????????? | | # #?#" + ! ## #?????????????? | | # #?#" % ##########%##### #?????????????? | | # #?#" #????##### ##### #?????????????? | | # #?#T #??????### ###?# #?????????????? | | # #?#" ! #??????# #?? #?????????????? | | # #?#" #??????# *############?????????????? | | #####?#" #??????#[ [ + #?????????????? | | ??????# #??????# ## # ! #?????????????? | | ??????######??????# ## # #?????????????? | | ??????????????????######## + #?????????????? | | ?????????????????????????######"" !#?????????????? | | ??????????????????????????????#"T #?????????????? | | ??????????????????????????????#"" ]#?????????????? | | ??????????????????????????????# #?????????????? | | ??????????????????????????????######?????????????? | | ?????????????????????????????????????????????????? | | | | | | | +----------------------------------------------------+ Best States ------------- Heat Dissipation 50 Energy Generation 12 Energy Capacity 265 Matter Stores 300 Matter Capacity 300 Sight Range 16 Terrain Scan Density 10 Armor Coverage 150 Evasion (%) 40 Recoil Reduction 2 Item Schematics ----------------- None Robot Schematics ------------------ None Fabricated ------------ Nothing Alien Tech Used ----------------- None Achievements -------------- None Challenges ------------ None Game ------ Seed BombardmentAlphaTendrils Manual? 0 Play Time 00:22:16 Cumulative 95.4 hours Start 2021.04.18 @ 16:48:48 End 2021.09.09 @ 16:35:23 Sessions 5 Manual Loads 0 Difficulty Rogue Special Mode None Game No. 170 Rogue 170 Adventurer 0 Explorer 0 Win Type - Total 0 Types 0/0/0/0/0/0/0/0/0 Lore% 58 Gallery% 60 Achievement% 44 Wizard Run 0 Options --------- ASCII 0 Keyboard 0 Movement Numpad Keybinds 0 Fullscreen 2 Font 18/Terminus Map View 76x50 Tactical HUD 1 Map Filters NONE Filters NONE Steam 1 RUN: 219f6576-70d4-4139-9400-696baa2c39ef